[Event "7th Holuj Radzikowska 2017"]
[Site "Wroclaw"]
[Date "2017.11.29"]
[Round "1"]
[White "Kulon, Klaudia"]
[Black "Szczepkowska, Karina"]
[Result "1-0"]
[ECO "A13"]
[WhiteElo "2352"]
[BlackElo "2406"]
[Annotator "ChessBase"]
[PlyCount "99"]
[EventDate "2017.??.??"]
[EventType "swiss"]
[EventCountry "POL"]
[SourceTitle "playchess.com"]
[Source "ChessBase"]
[SourceQuality "1"]
[TimeControl "40/5400+30:1800+30"]

1. c4 {[%emt 0:00:00]} Nf6 {[%emt 0:00:33]} 2. g3 {[%emt 0:00:00]} e6 {[%emt 0:00:52]} 3. Bg2 {[%emt 0:00:00]} d5 {[%emt 0:00:12]} 4. Nf3 {[%emt 0:00:01]} dxc4 {[%emt 0:01:18]} 5. Qa4+ {[%emt 0:00:32]} Nbd7 {[%emt 0:00:34]} 6. Qxc4 {[%emt 0:00:09]} a6 {[%emt 0:00:30]} 7. Qc2 {[%emt 0:01:00]} c5 {[%emt 0:01:02]} 8. O-O {[%emt 0:00:39]} b5 {[%emt 0:01:49]} 9. a4 {[%emt 0:04:41]} Bb7 {[%emt 0:01:52]} 10. Nc3 {[%emt 0:00:31]} Qb6 {[%emt 0:03:44]} 11. d3 {[%emt 0:03:13]} Be7 {[%emt 0:03:56]} 12. Qb3 {[%emt 0:05:11]} Nd5 {[%emt 0:05:35]} 13. Bg5 {[%emt 0:18:37]} Nxc3 {[%emt 0:14:29]} 14. Qxc3 {[%emt 0:00:24]} Bxg5 {[%emt 0:00:40]} 15. Nxg5 {[%emt 0:00:28]} O-O {[%emt 0:00:16]} 16. Bxb7 {[%emt 0:01:35]} Qxb7 {[%emt 0:00:30]} 17. Ne4 {[%emt 0:03:30]} c4 {[%emt 0:06:00]} 18. Rfd1 {[%emt 0:03:13]} Nb6 {[%emt 0:11:41]} 19. axb5 {[%emt 0:04:51]} axb5 {[%emt 0:00:17]} 20. Nd6 {[%emt 0:02:28]} Qc6 {[%emt 0:06:44]} 21. Rxa8 {[%emt 0:00:26]} Rxa8 {[%emt 0:00:16]} 22. dxc4 {[%emt 0:00:07]} bxc4 {[%emt 0:01:11]} 23. e4 {[%emt 0:01:34]} Rd8 {[%emt 0:08:17]} 24. e5 {[%emt 0:01:18]} h6 {[%emt 0:02:34]} 25. b3 {[%emt 0:07:04]} Qc5 {[%emt 0:12:04]} 26. Rc1 {[%emt 0:07:50]} Ra8 {[%emt 0:04:09]} 27. bxc4 {[%emt 0:02:03]} Ra3 {[%emt 0:03:17]} 28. Qb2 {[%emt 0:00:51]} Rf3 {[%emt 0:00:41]} 29. Kg2 {[%emt 0:05:52]} Rd3 {[%emt 0:02:59]} 30. Qb5 {[%emt 0:02:22]} Qd4 {[%emt 0:01:58]} 31. Rb1 {[%emt 0:05:20]} Rd2 {[%emt 0:04:12]} 32. Qxb6 {[%emt 0:00:22]} Qxe5 {[%emt 0:00:30]} 33. c5 {[%emt 0:07:19]} Qd5+ {[%emt 0:01:30]} 34. Kg1 {[%emt 0:00:03]} Rxf2 {[%emt 0:00:33]} 35. Kxf2 {[%emt 0:00:21]} Qd2+ {[%emt 0:00:07]} 36. Kf3 {[%emt 0:00:18]} Qd3+ {[%emt 0:00:12]} 37. Kf4 {[%emt 0:01:53]} g5+ {[%emt 0:01:18]} 38. Ke5 {[%emt 0:00:53]} Qc3+ {[%emt 0:00:27]} 39. Ke4 {[%emt 0:00:11]} Qc2+ {[%emt 0:00:26]} 40. Kd4 {[%emt 0:00:00]} Qd2+ {[%emt 0:00:14]} 41. Kc4 {[%emt 0:00:22]} Qc2+ {[%emt 0:01:22]} 42. Kb5 {[%emt 0:05:03]} Qxb1+ {[%emt 0:00:37]} 43. Kc6 {[%emt 0:00:04]} Qa2 {[%emt 0:01:59]} 44. Kb7 {[%emt 0:01:20]} Qd5+ {[%emt 0:02:10]} 45. c6 {[%emt 0:01:31]} Kg7 {[%emt 0:03:08]} 46. Qc7 {[%emt 0:00:29]} Qb3+ {[%emt 0:01:37]} 47. Ka8 {[%emt 0:00:04]} Kf6 {[%emt 0:02:58]} 48. Nb7 {[%emt 0:02:35]} Kg6 {[%emt 0:01:49]} 49. Kb8 {[%emt 0:00:40]} Qb4 {[%emt 0:06:12]} 50. Qd6 {[%emt 0:00:22]} 1-0

[Event "7th Holuj Radzikowska 2017"]
[Site "Wroclaw"]
[Date "2017.11.30"]
[Round "2"]
[White "Mkrtchian, Lilit"]
[Black "Majdan, Joanna"]
[Result "1/2-1/2"]
[ECO "A06"]
[WhiteElo "2390"]
[BlackElo "2349"]
[Annotator "RC"]
[PlyCount "118"]
[EventDate "2017.??.??"]
[EventType "swiss"]
[EventCountry "POL"]
[SourceTitle "playchess.com"]
[Source "ChessBase"]
[SourceQuality "1"]
[TimeControl "40/5400+30:1800+30"]

1. Nf3 {[%emt 0:00:00]} d5 {[%emt 0:00:31]} 2. g3 {[%emt 0:00:06]} Nf6 {[%emt 0:01:29]} 3. Bg2 {[%emt 0:00:16]} Bf5 {[%emt 0:01:39]} 4. c4 {[%emt 0:01:55]} c6 {[%emt 0:02:57]} 5. O-O {[%emt 0:00:17]} e6 {[%emt 0:00:33]} 6. cxd5 {[%emt 0:00:24]} exd5 {[%emt 0:01:18]} 7. d3 {[%emt 0:00:17]} Na6 {[%emt 0:02:01]} 8. a3 {[%emt 0:01:13]} Be7 {[%emt 0:01:00]} 9. b4 {[%emt 0:01:30]} Nc7 {[%emt 0:00:21]} 10. Nd4 {[%emt 0:01:47]} Bg6 {[%emt 0:00:43]} 11. Nb3 {[%emt 0:00:08]} O-O {[%emt 0:01:11]} 12. Bb2 {[%emt 0:03:53]} Re8 {[%emt 0:01:27]} 13. N1d2 {[%emt 0:02:28]} Ne6 {[%emt 0:05:35]} 14. Nf3 {[%emt 0:20:37]} Nd7 {[%emt 0:07:15]} 15. Rc1 {[%emt 0:07:20]} Qb6 {[%emt 0:02:11]} 16. Rb1 {[%emt 0:05:47]} Rad8 {[%emt 0:07:29]} 17. Qd2 {[%emt 0:01:49]} Qa6 {[%emt 0:04:35]} 18. Rfc1 {[%emt 0:00:48]} Rc8 {[%emt 0:10:08]} 19. Bh3 {[%emt 0:04:39]} Bd6 {[%emt 0:05:43]} 20. Nfd4 {[%emt 0:02:14]} Qb6 {[%emt 0:05:32]} 21. Ba1 {[%emt 0:08:40]} Re7 {[%emt 0:05:10]} 22. Nc5 {[%emt 0:06:01]} Rce8 {[%emt 0:02:10]} 23. Nf5 {[%emt 0:16:20]} Bxf5 {[%emt 0:00:22]} 24. Bxf5 {[%emt 0:00:03]} Qc7 {[%emt 0:01:49]} 25. Nxd7 {[%emt 0:02:42]} Qxd7 {[%emt 0:02:07]} 26. e4 {[%emt 0:00:45]} Bc7 {[%emt 0:02:40]} 27. Qb2 {[%emt 0:03:04]} f6 {[%emt 0:01:44]} 28. Qb3 {[%emt 0:00:17]} Bb6 {[%emt 0:01:41]} 29. exd5 {[%emt 0:03:01]} cxd5 {[%emt 0:00:04]} 30. Bh3 {[%emt 0:03:23]} Qd6 {[%emt 0:00:48]} 31. Bg2 {[%emt 0:00:43]} Nc7 {[%emt 0:02:40]} 32. d4 {[%emt 0:00:22]} f5 {[%emt 0:03:26]} 33. a4 {[%emt 0:02:49]} a6 {[%emt 0:00:13]} 34. Qf3 {[%emt 0:00:44]} g6 {[%emt 0:02:47]} 35. Bc3 {[%emt 0:00:16]} Re2 {[%emt 0:02:14]} 36. Qd3 {[%emt 0:00:30]} f4 {[%emt 0:02:12]} 37. Re1 {[%emt 0:00:40]} Rxe1+ {[%emt 0:00:32]} 38. Rxe1 {[%emt 0:00:03]} Rxe1+ {[%emt 0:01:16]} 39. Bxe1 {[%emt 0:00:03]} fxg3 {[%emt 0:01:17]} 40. hxg3 {[%emt 0:00:00]} Kg7 {[%emt 0:01:43]} 41. Bd2 {[%emt 0:08:36]} Ne6 {[%emt 0:01:47]} 42. Qf3 {[%emt 0:02:12]} Bxd4 {[%emt 0:01:49]} 43. Qxd5 {[%emt 0:00:23]} Qxd5 {[%emt 0:00:26]} 44. Bxd5 {[%emt 0:00:12]} Nd8 {[%emt 0:00:08]} 45. Kf1 {[%emt 0:05:38]} Kf6 {[%emt 0:00:20]} 46. Ke2 {[%emt 0:00:17]} Ke5 {[%emt 0:01:11]} 47. Bg2 {[%emt 0:00:19]} Nc6 {[%emt 0:02:52]} 48. f4+ {[%emt 0:05:18]} Kd6 {[%emt 0:04:11]} 49. Kd3 {[%emt 0:00:04]} Bf2 {[%emt 0:01:09]} 50. g4 {[%emt 0:00:04]} h5 {[%emt 0:00:43]} 51. gxh5 {[%emt 0:08:18]} gxh5 {[%emt 0:00:05]} 52. Ke4 {[%emt 0:00:12]} h4 {[%emt 0:05:08]} 53. Kf5 {[%emt 0:01:39]} Ne7+ {[%emt 0:04:45]} 54. Kg5 {[%emt 0:00:10]} Nd5 {[%emt 0:01:28]} 55. f5 {[%emt 0:00:19]} Ke5 {[%emt 0:01:12]} 56. f6 {[%emt 0:02:40]} Nxf6 {[%emt 0:00:33]} 57. Bc3+ {[%emt 0:02:44]} Bd4 {[%emt 0:00:36]} 58. Bxd4+ {[%emt 0:00:06]} Kxd4 {[%emt 0:00:03]} 59. Bxb7 {[%emt 0:00:19]} Kc4 {[%emt 0:01:17]} 1/2-1/2

[Event "7th Holuj Radzikowska 2017"]
[Site "Wroclaw"]
[Date "2017.12.03"]
[Round "5"]
[White "Majdan, Joanna"]
[Black "Szczepkowska, Karina"]
[Result "1-0"]
[ECO "C54"]
[WhiteElo "2349"]
[BlackElo "2406"]
[Annotator "NA"]
[PlyCount "73"]
[EventDate "2017.??.??"]
[EventType "swiss"]
[EventCountry "POL"]
[SourceTitle "playchess.com"]
[Source "ChessBase"]
[SourceQuality "1"]
[TimeControl "40/5400+30:1800+30"]

1. e4 {[%emt 0:00:00]} e5 {[%emt 0:00:06]} 2. Bc4 {[%emt 0:00:00]} Nc6 {[%emt 0:00:42]} 3. Nf3 {[%emt 0:00:03]} Bc5 {[%emt 0:00:18]} 4. c3 {[%emt 0:03:01]} Nf6 {[%emt 0:00:06]} 5. d3 {[%emt 0:00:05]} a6 {[%emt 0:00:05]} 6. Bb3 {[%emt 0:01:17]} Ba7 7. Nbd2 {[%emt 0:01:45]} d6 {[%emt 0:02:28]} 8. h3 {[%emt 0:00:41]} h6 {[%emt 0:01:39]} 9. Nf1 {[%emt 0:00:24]} Be6 {[%emt 0:05:02]} 10. Ng3 {[%emt 0:02:51]} Qd7 {[%emt 0:13:01]} 11. Bxe6 {[%emt 0:07:44]} fxe6 {[%emt 0:04:16]} 12. O-O {[%emt 0:02:27]} O-O {[%emt 0:05:06]} 13. d4 {[%emt 0:08:06]} Qf7 {[%emt 0:05:12]} 14. Be3 {[%emt 0:04:42]} exd4 {[%emt 0:09:46]} 15. Nxd4 {[%emt 0:04:56]} Bxd4 {[%emt 0:04:35]} 16. Bxd4 {[%emt 0:03:57]} e5 {[%emt 0:03:15]} 17. Be3 {[%emt 0:00:12]} d5 {[%emt 0:05:00]} 18. Bc5 {[%emt 0:05:41]} Rfd8 {[%emt 0:00:54]} 19. Qe2 {[%emt 0:04:41]} b6 {[%emt 0:03:05]} 20. Ba3 {[%emt 0:00:43]} d4 {[%emt 0:00:18]} 21. f4 {[%emt 0:02:40]} exf4 {[%emt 0:06:34]} 22. Rxf4 {[%emt 0:00:41]} d3 {[%emt 0:00:05]} 23. Qf1 {[%emt 0:06:40]} Qe6 {[%emt 0:05:15]} 24. Rd1 {[%emt 0:02:35]} Ne5 {[%emt 0:01:18]} 25. b3 {[%emt 0:02:11]} c5 {[%emt 0:03:32]} 26. c4 {[%emt 0:03:27]} Rf8 {[%emt 0:02:33]} 27. Bb2 {[%emt 0:02:44]} Rad8 {[%emt 0:01:06]} 28. Rd2 {[%emt 0:05:37]} b5 {[%emt 0:03:41]} 29. Qa1 {[%emt 0:06:36]} Nfd7 {[%emt 0:02:52]} 30. Rf5 {[%emt 0:03:44]} Rxf5 {[%emt 0:02:55]} 31. exf5 {[%emt 0:01:10]} Nf3+ {[%emt 0:01:31]} 32. Kf2 {[%emt 0:00:47]} Qe7 {[%emt 0:04:19]} 33. gxf3 {[%emt 0:00:58]} bxc4 {[%emt 0:00:12]} 34. Qe1 {[%emt 0:02:18]} Qg5 {[%emt 0:01:51]} 35. Qe6+ {[%emt 0:00:56]} Kh8 {[%emt 0:00:11]} 36. Ne4 {[%emt 0:00:23]} Qf4 {[%emt 0:04:04]} 37. Bxg7+ {[%emt 0:01:51]} 1-0